fUST/lending_fUST_20250716
["ID","MTS","AMOUNT","RATE_DAILY","PERIOD"]
[372379169,1752618666776,-151.0,0.000246,7]
[372379171,1752618666786,-164.09001901,0.00024603,2]
[372379173,1752618666795,-264225.50699821,0.0002465,2]
[372379175,1752618666804,-501.57966218,0.0002465,2]
[372379177,1752618666813,-168.0,0.00024655,2]
[372379179,1752618666822,-151.0,0.00024657,7]
[372379181,1752618666832,-151.0,0.00024657,7]
[372379183,1752618666841,-356.2,0.00024657,2]
[372379185,1752618666850,-356.2,0.00024657,2]
[372379187,1752618666860,-356.2,0.00024657,2]
[372379189,1752618666869,-356.2,0.00024657,2]
[372379191,1752618666878,-356.2,0.00024657,2]
[372379193,1752618666888,-356.2,0.00024657,2]
[372379195,1752618666897,-356.2,0.00024657,2]
[372379197,1752618666907,-356.2,0.00024657,2]
[372379199,1752618666916,-356.2,0.00024657,2]
[372379201,1752618666926,-356.2,0.00024657,2]
[372379203,1752618666937,-356.2,0.00024657,2]
[372379205,1752618666946,-356.2,0.00024657,2]
[372379207,1752618666956,-356.2,0.00024657,2]
[372379209,1752618666966,-356.2,0.00024657,2]
[372379211,1752618666976,-356.2,0.00024657,2]
[372379213,1752618666986,-356.2,0.00024657,2]
[372379215,1752618666995,-356.2,0.00024657,2]
[372379217,1752618667004,-356.2,0.00024657,2]
[372379219,1752618667014,-356.2,0.00024657,2]
[372379221,1752618667024,-356.2,0.00024657,2]
[372379223,1752618667034,-356.2,0.00024657,2]
[372379225,1752618667043,-518.89,0.00024657,2]
[372379227,1752618667056,-1135.32,0.00024657,2]
[372379229,1752618667065,-4059.97,0.00024657,2]
[372379231,1752618667075,-1873.25,0.00024657,2]
[372379233,1752618667084,-746.27,0.00024657,2]
[372379235,1752618667095,-1384.87,0.00024657,2]
[372379236,1752618667104,-1481.18,0.00024657,2]
[372379237,1752618667113,-1389.79,0.00024657,2]
[372379238,1752618667124,-3259.16,0.00024657,2]
[372379239,1752618667134,-957.55,0.00024657,2]
[372379240,1752618667144,-1328.03,0.00024657,2]
[372379241,1752618667153,-635.38,0.00024657,2]
[372379242,1752618667162,-1382.32,0.00024657,2]
[372379243,1752618667171,-380.0,0.00024658,2]
[372379244,1752618667180,-200.0,0.00024658,2]
[372379245,1752618667189,-165.41320986,0.00024658,2]
[372379246,1752618667198,-200.0,0.00024658,15]
[372379247,1752618667207,-185.88181984,0.00024658,2]
[372379248,1752618667217,-500.0,0.00024658,2]
[372379249,1752618667226,-500.0,0.00024685,2]
[372379251,1752618667235,-551.04073905,0.0002469,10]
[372379253,1752618667243,-151.0,0.000247,7]
[372379255,1752618667253,-236.940462,0.000247,7]
[372379257,1752618667263,-236.940454,0.000247,7]
[372379259,1752618667272,-500.0,0.00024713,2]
[372379261,1752618667282,-205.0,0.0002473,2]
[372379263,1752618667291,-500.0,0.0002474,2]
[372379264,1752618667301,-2528.74245824,0.00024745,2]
[372379266,1752618667310,-500.0,0.00024749,10]
[372379268,1752618667320,-500.0,0.00024749,10]
[372379270,1752618667329,-500.0,0.00024749,10]
[372379273,1752618667339,-500.0,0.00024749,10]
[372379274,1752618667348,-500.0,0.00024749,10]
[372379276,1752618667358,-500.0,0.00024749,10]
[372379279,1752618667368,-500.0,0.00024749,10]
[372379281,1752618667377,-151.0,0.0002475,7]
[372379282,1752618667387,-151.0,0.0002475,7]
[372379284,1752618667396,-151.0,0.0002475,3]
[372379287,1752618667406,-151.0,0.0002475,7]
[372379289,1752618667415,-151.0,0.0002475,7]
[372379290,1752618667424,-31432.22292633,0.0002475,2]
[372379292,1752618667435,-151.0,0.0002475,7]
[372379294,1752618667444,-151.0,0.0002475,7]
[372379296,1752618667453,-151.0,0.0002475,7]
[372379298,1752618667463,-151.0,0.0002475,7]
[372379300,1752618667472,-151.0,0.0002475,7]
[372379302,1752618667482,-151.0,0.0002475,7]
[372379304,1752618667491,-151.0,0.0002475,7]
[372379306,1752618667502,-500.0,0.00024768,2]
[372379308,1752618667511,-161.5,0.00024772,7]
[372379310,1752618667522,-12928.91473705,0.00024774,2]
[372379312,1752618667531,-500.0,0.00024795,2]
[372379314,1752618667541,-168.0,0.00024806,2]
[372379316,1752618667550,-823.0,0.00024808,2]
[372379318,1752618667559,-500.0,0.00024822,2]
[372379320,1752618667569,-500.0,0.0002485,2]
[372379322,1752618667579,-168.0,0.00024856,2]
[372379324,1752618667588,-168.0,0.00024866,2]
[372379326,1752618667598,-500.0,0.00024877,2]
[372379328,1752618667607,-500.0,0.00024899,10]
[372379330,1752618667616,-151.0,0.00024899,7]
[372379332,1752618667626,-500.0,0.00024899,10]
[372379334,1752618667635,-500.0,0.00024899,10]
[372379336,1752618667644,-500.0,0.00024899,10]
[372379338,1752618667654,-500.0,0.00024899,10]
[372379340,1752618667664,-500.0,0.00024899,10]
[372379342,1752618667674,-500.0,0.00024899,10]
[372379344,1752618667684,-500.0,0.00024899,10]
[372379346,1752618667694,-151.0,0.000249,7]
[372379348,1752618667703,-151.0,0.000249,7]
[372379350,1752618667712,-151.0,0.000249,7]
[372379361,1752618667812,-151.0,0.000249,3]
[372379363,1752618667822,-151.0,0.000249,7]
[372379365,1752618667832,-151.0,0.000249,7]
[372379367,1752618667842,-151.0,0.000249,7]
[372379369,1752618667851,-151.30211,0.000249,7]
[372379371,1752618667860,-151.0,0.000249,7]
[372379373,1752618667869,-151.0,0.000249,7]
[372379375,1752618667879,-151.0,0.000249,7]
[372379377,1752618667889,-151.0,0.000249,7]
[372379379,1752618667898,-169.528248,0.000249,7]
[372379381,1752618667907,-817278.651245,0.000249,2]
[372379382,1752618667916,-164.09001901,0.00024904,2]
[372379384,1752618667927,-500.0,0.00024905,2]
[372379386,1752618667937,-168.0,0.00024911,2]
[372379388,1752618667947,-500.0,0.0002493,10]
[372379390,1752618667957,-500.0,0.0002493,10]
[372379392,1752618667966,-500.0,0.0002493,10]
[372379394,1752618667975,-500.0,0.0002493,10]
[372379396,1752618667984,-500.0,0.0002493,10]
[372379398,1752618667994,-500.0,0.0002493,10]
[372379400,1752618668003,-356.2,0.00024931,2]
[372379402,1752618668012,-518.89,0.00024931,2]
[372379404,1752618668022,-1135.32,0.00024931,2]
[372379406,1752618668031,-4059.97,0.00024931,2]
[372379408,1752618668040,-1873.25,0.00024931,2]
[372379410,1752618668050,-746.27,0.00024931,2]
[372379412,1752618668062,-1384.87,0.00024931,2]
[372379414,1752618668072,-1481.18,0.00024931,2]
[372379416,1752618668081,-1389.79,0.00024931,2]
[372379418,1752618668091,-3259.16,0.00024931,2]
[372379420,1752618668101,-957.55,0.00024931,2]
[372379422,1752618668111,-1328.03,0.00024931,2]
[372379424,1752618668120,-635.38,0.00024931,2]
[372379426,1752618668130,-1382.32,0.00024931,2]
[372379428,1752618668142,-500.0,0.00024932,2]
[372379430,1752618668152,-500.0,0.00024959,2]
[372379432,1752618668161,-2528.74245824,0.00024973,2]
[372379434,1752618668171,-168.0,0.00024974,2]
[372379436,1752618668180,-500.0,0.00024987,2]
[372379437,1752618668190,-500.0,0.00024989,10]
[372379439,1752618668199,-500.0,0.00024989,10]
[372379441,1752618668209,-500.0,0.00024989,10]
[372379443,1752618668218,-500.0,0.00024989,10]
[372379445,1752618668228,-500.0,0.00024989,10]
[372379447,1752618668238,-349.01881531,0.00024989,10]
[372379449,1752618668247,-173797.22031102,0.0002499,4]
[372379457,1752618668315,-4735.92959689,0.0002499,4]
[372379476,1752618668487,-265.67,0.00019178,2]
[372379478,1752618668499,-194.33,0.00019178,2]
[372379480,1752618668508,-203.746,0.00019178,2]
[372379495,1752618668650,-97.04628335,0.00019178,2]
[372379497,1752618668661,-159.20771665,0.00019178,2]
[372379499,1752618668671,-460.0,0.00019178,2]
[372379501,1752618668680,-460.0,0.00019178,2]
[372379503,1752618668689,-369.78329955,0.00019178,2]
[372379505,1752618668698,-460.0,0.00019178,2]
[372379507,1752618668708,-460.0,0.00019452,2]
[372379509,1752618668717,-460.0,0.00019452,2]
[372379511,1752618668726,-263.0,0.00019529,2]
[372379513,1752618668736,-332.0,0.00019714,2]
[372379515,1752618668745,-460.0,0.00019726,2]
[372379517,1752618668754,-116.4147358,0.00019726,2]
[372379533,1752618668898,-44.85726628,0.00019178,2]
[372379535,1752618668909,-861.8114541,0.00019178,2]
[372379537,1752618668919,-460.0,0.00019178,2]
[372379539,1752618668928,-460.0,0.00019452,2]
[372379541,1752618668939,-180.64378591,0.00019726,2]
[372380725,1752618828641,7254.9643524,0.00018168,2]
[372380729,1752619372793,166.0,0.00018067,2]
[372380730,1752619385615,317.788292,0.00013699,2]
[372380733,1752619543099,-255.0,0.00018917,2]
[372380734,1752619543122,-778.6673688,0.00018964,2]
[372380735,1752619543143,-300.0,0.00019063,2]
[372380736,1752619543164,-274.0,0.00019063,2]
[372380737,1752619543187,-300.0,0.00019063,2]
[372380738,1752619543208,-300.0,0.00019063,2]
[372380739,1752619543231,-145.00126121,0.00019063,2]
[372380740,1752619549091,-1054.99873879,0.00019063,2]
[372380741,1752619549113,-320.35291058,0.00019064,2]
[372380742,1752619641078,-1352.91119535,0.000189,2]
[372380743,1752619647087,-1250.2958317,0.000189,2]
[372380744,1752619647110,-300.0,0.00019062,2]
[372380745,1752619647131,-500.0,0.00019063,2]
[372380746,1752619647152,-500.0,0.00019063,2]
[372380747,1752619647173,-616.27494362,0.00019063,2]
[372380748,1752619647196,-500.0,0.00019063,2]
[372380749,1752619647217,-500.0,0.00019063,2]
[372380750,1752619647240,-698.4715462,0.00019063,2]
[372380751,1752619647260,-305.61239685,0.00019063,2]
[372380752,1752619647282,-500.0,0.00019063,2]
[372380753,1752619647302,-500.0,0.00019063,2]
[372380754,1752619647323,-624.74739052,0.00019063,2]
[372380755,1752619647346,-493.23239595,0.00019063,2]
[372380756,1752619647368,-698.4715462,0.00019063,2]
[372380757,1752619647392,-500.0,0.00019063,2]
[372380758,1752619647420,-500.0,0.00019063,2]
[372380759,1752619647444,-698.4715462,0.00019063,2]
[372380760,1752619647466,-513.96808216,0.00019063,2]
[372380761,1752619647491,-500.0,0.00019063,2]
[372380762,1752619647513,-500.0,0.00019063,2]
[372380763,1752619647534,-500.0,0.00019063,2]
[372380764,1752619647560,-698.4715462,0.00019063,2]
[372380765,1752619647581,-500.0,0.00019063,2]
[372380766,1752619647604,-500.0,0.00019063,2]
[372380767,1752619647628,-21.31194491,0.00019063,2]
[372380768,1752619650134,-677.15960129,0.00019063,2]
[372380769,1752619650157,-168.77654334,0.00019063,2]
[372380770,1752619650179,-500.0,0.00019063,2]
[372380771,1752619650202,-698.4715462,0.00019063,2]
[372380772,1752619650224,-500.0,0.00019063,2]
[372380773,1752619650245,-500.0,0.00019063,2]
[372380774,1752619650268,-698.4715462,0.00019063,2]
[372380775,1752619650291,-698.4715462,0.00019063,2]
[372380776,1752619650313,-500.0,0.00019063,2]
[372380777,1752619650335,-586.26979218,0.00019063,2]
[372380778,1752619650359,-698.4715462,0.00019063,2]
[372380779,1752619650382,-698.4715462,0.00019063,2]
[372380780,1752619650412,-698.4715462,0.00019063,2]
[372380781,1752619650441,-698.4715462,0.00019063,2]
[372380782,1752619650464,-698.4715462,0.00019063,2]
[372380783,1752619650486,-698.4715462,0.00019063,2]
[372380784,1752619650509,-698.4715462,0.00019063,2]
[372380785,1752619650544,-698.4715462,0.00019063,2]
[372380786,1752619650569,-565.46794075,0.00019063,2]
[372380831,1752619832143,-681.3339477,0.00018963,2]
[372380833,1752619832153,-300.0,0.00019061,2]
[372380835,1752619832163,-300.0,0.00019061,2]
[372380837,1752619832173,-1200.0,0.00019061,2]
[372380839,1752619832182,-185.41961593,0.00019062,2]
[372380841,1752619832191,-2577.22761636,0.00019062,2]
[372380842,1752619832201,-1200.0,0.00019063,2]
[372380843,1752619832210,-155.0,0.00019064,2]
[372380844,1752619832220,-500.0,0.00019065,2]
[372380845,1752619832229,-178.73433582,0.0001907,2]
[372380846,1752619832240,-46544.46251254,0.0001907,2]
[372380847,1752619832249,-226.57457095,0.00019078,2]
[372380848,1752619832259,-1790.07201817,0.00019078,2]
[372380849,1752619832268,-197.99,0.00019168,3]
[372380850,1752619832277,-594.02,0.00019168,3]
[372380851,1752619832286,-290.81064961,0.00019173,2]
[372380852,1752619832295,-180.0,0.00019173,2]
[372380853,1752619832304,-500.0,0.00019173,2]
[372380854,1752619832313,-500.0,0.00019173,2]
[372380855,1752619832322,-500.0,0.00019173,2]
[372380856,1752619832332,-363.28456031,0.00019173,2]
[372380857,1752619832341,-188.36928954,0.00019173,2]
[372380858,1752619832351,-500.0,0.00019173,2]
[372380859,1752619832360,-500.0,0.00019173,2]
[372380860,1752619832370,-500.0,0.00019173,2]
[372380861,1752619832380,-500.0,0.00019173,2]
[372380862,1752619832390,-326.97247272,0.00019173,2]
[372380863,1752619832400,-500.0,0.00019173,2]
[372380864,1752619832410,-500.0,0.00019173,2]
[372380865,1752619832419,-329.36550926,0.00019177,2]
[372380866,1752619832428,-460.0,0.00019178,2]
[372380867,1752619832438,-460.0,0.00019178,2]
[372380868,1752619832447,-460.0,0.00019178,2]
[372380869,1752619832457,-473.61569542,0.00019178,2]
[372380870,1752619832466,-460.0,0.00019178,2]
[372380871,1752619832476,-460.0,0.00019178,2]
[372380872,1752619832486,-460.0,0.00019178,2]
[372380873,1752619832496,-460.0,0.00019178,2]
[372380874,1752619832505,-151.0,0.00019178,2]
[372380875,1752619832514,-460.0,0.00019178,2]
[372380876,1752619832524,-268.57026462,0.00019178,2]
[372380877,1752619832537,-460.0,0.00019178,2]
[372380878,1752619832547,-151.0,0.00019178,2]
[372380879,1752619832556,-151.0,0.00019178,2]
[372380880,1752619832565,-151.0,0.00019178,2]
[372380881,1752619832574,-151.0,0.00019178,2]
[372380882,1752619832583,-494.98226552,0.00019178,2]
[372380883,1752619832593,-180.22070384,0.00019178,2]
[372380884,1752619832606,-279.77929616,0.00019178,2]
[372380885,1752619832615,-152.81657092,0.00019178,2]
[372380886,1752619832626,-307.18342908,0.00019178,2]
[372380887,1752619832635,-316.41758735,0.00019178,2]
[372380888,1752619832645,-460.0,0.00019178,2]
[372380889,1752619832655,-460.0,0.00019178,2]
[372380890,1752619832665,-460.0,0.00019178,2]
[372380891,1752619832675,-460.0,0.00019178,2]
[372380892,1752619832687,-460.0,0.00019178,2]
[372380893,1752619832698,-460.0,0.00019178,2]
[372380894,1752619832708,-460.0,0.00019178,2]
[372380895,1752619832717,-460.0,0.00019178,2]
[372380896,1752619832726,-460.0,0.00019178,2]
[372380897,1752619832736,-460.0,0.00019178,2]
[372380898,1752619832746,-460.0,0.00019178,2]
[372380899,1752619832755,-460.0,0.00019178,2]
[372380900,1752619832765,-460.0,0.00019178,2]
[372380901,1752619832774,-460.0,0.00019178,2]
[372380902,1752619832783,-460.0,0.00019178,2]
[372380903,1752619832794,-460.0,0.00019178,2]
[372380904,1752619832803,-460.0,0.00019178,2]
[372380905,1752619832813,-460.0,0.00019178,2]
[372380906,1752619832823,-460.0,0.00019178,2]
[372380907,1752619832832,-549.11941092,0.00019178,2]
[372380908,1752619832841,-460.0,0.00019178,2]
[372380909,1752619832851,-460.0,0.00019178,2]
[372380910,1752619832860,-460.0,0.00019178,2]
[372380911,1752619832870,-460.0,0.00019178,2]
[372380912,1752619832880,-460.0,0.00019178,2]
[372380913,1752619832890,-460.0,0.00019178,2]
[372380914,1752619832900,-460.0,0.00019178,2]
[372380915,1752619832909,-460.0,0.00019178,2]
[372380916,1752619832919,-460.0,0.00019178,2]
[372380917,1752619832928,-460.0,0.00019178,2]
[372380918,1752619832938,-460.0,0.00019178,2]
[372380919,1752619832947,-460.0,0.00019178,2]
[372380920,1752619832956,-460.0,0.00019178,2]
[372380921,1752619832966,-460.0,0.00019178,2]
[372380922,1752619832975,-460.0,0.00019178,2]
[372380923,1752619832984,-460.0,0.00019178,2]
[372380924,1752619832994,-460.0,0.00019178,2]
[372380925,1752619833004,-171.02463991,0.00019178,2]
[372380926,1752619833013,-460.0,0.00019178,2]
[372380927,1752619833022,-460.0,0.00019178,2]
[372380928,1752619833031,-460.0,0.00019178,2]
[372380929,1752619833040,-460.0,0.00019178,2]
[372380930,1752619833049,-460.0,0.00019178,2]
[372380931,1752619833058,-249.99787793,0.00019178,2]
[372380932,1752619833067,-460.0,0.00019178,2]
[372380933,1752619833077,-460.0,0.00019178,2]
[372380934,1752619833086,-460.0,0.00019178,2]
[372380935,1752619833095,-460.0,0.00019178,2]
[372380936,1752619833104,-460.0,0.00019178,2]
[372380937,1752619833113,-460.0,0.00019178,2]
[372380938,1752619833123,-460.0,0.00019178,2]
[372380939,1752619833132,-460.0,0.00019178,2]
[372380940,1752619833141,-460.0,0.00019178,2]
[372380941,1752619833150,-460.0,0.00019178,2]
[372380942,1752619833159,-460.0,0.00019178,2]
[372380943,1752619833168,-460.0,0.00019178,2]
[372380944,1752619833178,-460.0,0.00019178,2]
[372380945,1752619833187,-460.0,0.00019178,2]
[372380946,1752619833196,-460.0,0.00019178,2]
[372380947,1752619833205,-460.0,0.00019178,2]
[372380948,1752619833215,-460.0,0.00019178,2]
[372380949,1752619833225,-460.0,0.00019178,2]
[372380950,1752619833234,-460.0,0.00019178,2]
[372380951,1752619833243,-344.731679,0.00019178,2]
[372380952,1752619833253,-460.0,0.00019178,2]
[372380953,1752619833262,-460.0,0.00019178,2]
[372380954,1752619833272,-460.0,0.00019178,2]
[372380955,1752619833281,-460.0,0.00019178,2]
[372380956,1752619833291,-460.0,0.00019178,2]
[372380957,1752619833300,-460.0,0.00019178,2]
[372380958,1752619833310,-460.0,0.00019178,2]
[372380959,1752619833319,-460.0,0.00019178,2]
[372380960,1752619833329,-467.28361239,0.00019178,2]
[372380961,1752619833338,-460.0,0.00019178,2]
[372380962,1752619833347,-460.0,0.00019178,2]
[372380963,1752619833356,-460.0,0.00019178,2]
[372380964,1752619833365,-460.0,0.00019178,2]
[372380965,1752619833374,-460.0,0.00019178,2]
[372380966,1752619833383,-460.0,0.00019178,2]
[372380967,1752619833392,-598.06,0.00019178,2]
[372380968,1752619833402,-460.0,0.00019178,2]
[372380969,1752619833412,-460.0,0.00019178,2]
[372380970,1752619833421,-460.0,0.00019178,2]
[372380971,1752619833431,-460.0,0.00019178,2]
[372380972,1752619833439,-460.0,0.00019178,2]
[372380973,1752619833448,-460.0,0.00019178,2]
[372380974,1752619833457,-460.0,0.00019178,2]
[372380975,1752619833467,-460.0,0.00019178,2]
[372380976,1752619833476,-460.0,0.00019178,2]
[372380977,1752619833485,-460.0,0.00019178,2]
[372380978,1752619833495,-460.0,0.00019178,2]
[372380979,1752619833504,-460.0,0.00019178,2]
[372380980,1752619833513,-460.0,0.00019178,2]
[372380981,1752619833523,-460.0,0.00019178,2]
[372380982,1752619833535,-460.0,0.00019178,2]
[372380983,1752619833545,-460.0,0.00019178,2]
[372380984,1752619833555,-460.0,0.00019178,2]
[372380985,1752619833564,-460.0,0.00019178,2]
[372380986,1752619833574,-460.0,0.00019178,2]
[372380987,1752619833583,-460.0,0.00019178,2]
[372380988,1752619833592,-460.0,0.00019178,2]
[372380989,1752619833602,-460.0,0.00019178,2]
[372380990,1752619833611,-460.0,0.00019178,2]
[372380991,1752619833621,-460.0,0.00019178,2]
[372380992,1752619833630,-460.0,0.00019178,2]
[372380993,1752619833639,-460.0,0.00019178,2]
[372380994,1752619833649,-460.0,0.00019178,2]
[372380995,1752619833658,-460.0,0.00019178,2]
[372380996,1752619833667,-460.0,0.00019178,2]
[372380997,1752619833677,-460.0,0.00019178,2]
[372380998,1752619833686,-460.0,0.00019178,2]
[372380999,1752619833695,-460.0,0.00019178,2]
[372381000,1752619833705,-460.0,0.00019178,2]
[372381001,1752619833714,-460.0,0.00019178,2]
[372381002,1752619833724,-460.30007351,0.00019178,2]
[372381003,1752619833733,-460.0,0.00019178,2]
[372381004,1752619833743,-246.53829144,0.00019178,2]
[372381005,1752619833753,-460.0,0.00019178,2]
[372381006,1752619833762,-460.0,0.00019178,2]
[372381007,1752619833772,-460.0,0.00019178,2]
[372381008,1752619833781,-460.0,0.00019178,2]
[372381009,1752619833791,-460.0,0.00019178,2]
[372381010,1752619833800,-460.0,0.00019178,2]
[372381011,1752619833809,-460.0,0.00019178,2]
[372381012,1752619833819,-460.0,0.00019178,2]
[372381013,1752619833828,-231.5,0.00019178,2]
[372381014,1752619833838,-460.0,0.00019178,2]
[372381015,1752619833847,-460.0,0.00019178,2]
[372381016,1752619833857,-460.0,0.00019178,2]
[372381017,1752619833866,-460.0,0.00019178,2]
[372381018,1752619833875,-468.48826972,0.00019178,2]
[372381019,1752619833885,-460.0,0.00019178,2]
[372381020,1752619833895,-1000.0,0.00019178,2]
[372381021,1752619833904,-460.0,0.00019178,2]
[372381022,1752619833913,-460.0,0.00019178,2]
[372381023,1752619833923,-460.0,0.00019178,2]
[372381024,1752619833932,-463.37580608,0.00019178,2]
[372381025,1752619833942,-460.0,0.00019178,2]
[372381026,1752619833952,-460.0,0.00019178,2]
[372381027,1752619833961,-460.0,0.00019178,2]
[372381028,1752619833972,-460.0,0.00019178,2]
[372381029,1752619833982,-460.0,0.00019178,2]
[372381030,1752619834092,-460.0,0.00019178,2]
[372381031,1752619834103,-460.0,0.00019178,2]
[372381032,1752619834114,-460.0,0.00019178,2]
[372381033,1752619834124,-460.0,0.00019178,2]
[372381034,1752619834134,-460.0,0.00019178,2]
[372381035,1752619834144,-460.0,0.00019178,2]
[372381036,1752619834154,-460.0,0.00019178,2]
[372381037,1752619834164,-460.0,0.00019178,2]
[372381038,1752619834174,-460.0,0.00019178,2]
[372381039,1752619834183,-460.0,0.00019178,2]
[372381040,1752619834193,-460.0,0.00019178,2]
[372381041,1752619834202,-460.0,0.00019178,2]
[372381042,1752619834212,-460.0,0.00019178,2]
[372381043,1752619834222,-500.0,0.00019178,2]
[372381044,1752619834232,-160.64124358,0.00019178,2]
[372381045,1752619834241,-460.0,0.00019178,2]
[372381046,1752619834252,-460.0,0.00019178,2]
[372381047,1752619834262,-460.0,0.00019178,2]
[372381048,1752619834271,-459.84158368,0.00019178,2]
[372381049,1752619834281,-460.0,0.00019178,2]
[372381050,1752619834291,-460.0,0.00019178,2]
[372381051,1752619834301,-460.0,0.00019178,2]
[372381052,1752619834310,-460.0,0.00019178,2]
[372381053,1752619834321,-460.0,0.00019178,2]
[372381054,1752619834330,-460.0,0.00019178,2]
[372381055,1752619834339,-460.0,0.00019178,2]
[372381056,1752619834349,-460.0,0.00019178,2]
[372381057,1752619834358,-443.28651295,0.00019178,2]
[372381058,1752619834368,-460.0,0.00019178,2]
[372381059,1752619834377,-460.0,0.00019178,2]
[372381060,1752619834386,-460.0,0.00019178,2]
[372381061,1752619834395,-273.22346454,0.00019178,2]
[372381062,1752619834404,-460.0,0.00019178,2]
[372381063,1752619834413,-460.0,0.00019178,2]
[372381064,1752619834423,-461.09015786,0.00019178,2]
[372381065,1752619834432,-460.0,0.00019178,2]
[372381066,1752619834441,-460.0,0.00019178,2]
[372381067,1752619834451,-460.0,0.00019178,2]
[372381068,1752619834460,-460.53415314,0.00019178,2]
[372381069,1752619834469,-460.0,0.00019178,2]
[372381070,1752619834480,-460.0,0.00019178,2]
[372381071,1752619834491,-460.0,0.00019178,2]
[372381072,1752619834501,-460.0,0.00019178,2]
[372381073,1752619834510,-460.0,0.00019178,2]
[372381074,1752619834520,-460.0,0.00019178,2]
[372381075,1752619834534,-460.0,0.00019178,2]
[372381076,1752619834543,-460.0,0.00019178,2]
[372381077,1752619834552,-460.0,0.00019178,2]
[372381078,1752619834563,-500.0,0.00019178,2]
[372381079,1752619834574,-460.0,0.00019178,2]
[372381080,1752619834583,-460.0,0.00019178,2]
[372381081,1752619834593,-468.36298365,0.00019178,2]
[372381082,1752619834604,-460.0,0.00019178,2]
[372381083,1752619834613,-460.0,0.00019178,2]
[372381084,1752619834622,-460.0,0.00019178,2]
[372381085,1752619834631,-460.0,0.00019178,2]
[372381086,1752619834640,-460.0,0.00019178,2]
[372381087,1752619834649,-460.0,0.00019178,2]
[372381088,1752619834659,-460.0,0.00019178,2]
[372381089,1752619834668,-460.0,0.00019178,2]
[372381090,1752619834677,-460.0,0.00019178,2]
[372381091,1752619834687,-460.0,0.00019178,2]
[372381092,1752619834696,-460.0,0.00019178,2]
[372381093,1752619834705,-460.0,0.00019178,2]
[372381094,1752619834715,-460.0,0.00019178,2]
[372381095,1752619834723,-460.0,0.00019178,2]
[372381096,1752619834733,-460.0,0.00019178,2]
[372381097,1752619834742,-460.0,0.00019178,2]
[372381098,1752619834751,-460.0,0.00019178,2]
[372381099,1752619834761,-460.0,0.00019178,2]
[372381100,1752619834770,-460.0,0.00019178,2]
[372381101,1752619834780,-463.79956395,0.00019178,2]
[372381102,1752619834790,-521.23,0.00019178,2]
[372381103,1752619834801,-460.0,0.00019178,2]
[372381104,1752619834810,-460.0,0.00019178,2]
[372381105,1752619834819,-460.0,0.00019178,2]
[372381106,1752619834829,-460.0,0.00019178,2]
[372381107,1752619834838,-460.0,0.00019178,2]
[372381108,1752619834847,-565.50399277,0.00019178,2]
[372381109,1752619834857,-460.0,0.00019178,2]
[372381110,1752619834866,-460.0,0.00019178,2]
[372381111,1752619834876,-460.0,0.00019178,2]
[372381112,1752619834886,-460.0,0.00019178,2]